Cogmind - Beta 11.2 @@@ ROGUE MODE // 2023.02.05 @ 16:01:46 Player: Red Box Result: Self-destructed Performance ------------- Evolutions (1) 500 Regions Visited (4) 800 Robots Destroyed (60) 300 Value Destroyed (1522) 1522 Prototype IDs (8) 160 Alien Tech Used (0) 0 Bonus (-87) -87 TOTAL SCORE: 3195 Bonus ------- High Alert Combat Kills 57 Follower Combat Kills 60 Friendly Fire -204 Cogmind --------- Core Integrity 28/400 Matter 291/300 Energy 100/100 System Corruption 5% Temperature Cool (0) Movement Core (750) Ox14 Location -9/Mines Parts ------- > --- POWER (1) -------- (None) > --- PROPULSION (2) --- (None) > --- UTILITY (4) ------ High-capacity Storage Unit Improved Targeting Computer > --- WEAPON (2) ------- Katana Katana > --- INVENTORY (20) --- Heavy Ion Engine Wheel Wheel Compact Wheel Compact Wheel Compact Wheel Armored Wheel Improved Heat Sink Improved Light Armor Plating Heavy EM Pulse Gun EM Shotgun Improved EM Shotgun Improved Medium Laser Improved Medium Laser Improved Medium Laser Improved Medium Laser 8R-AWN's Boregun Flak Cannon Rocket Launcher Peak State ------------ > --- POWER ------------ Heavy Ion Engine > --- PROPULSION ------- Wheel Compact Wheel > --- UTILITY ---------- Improved Heat Sink High-capacity Storage Unit Improved Targeting Computer Improved Light Armor Plating > --- WEAPON ----------- Improved Medium Laser Improved Medium Laser > --- INVENTORY -------- Heavy Ion Engine Wheel Wheel Wheel Compact Wheel Compact Wheel Compact Wheel Armored Wheel Improved Heat Sink Improved Terrain Scanner Improved Light Armor Plating Improved Light Armor Plating EM Shotgun Improved EM Shotgun Improved Medium Laser Improved Medium Laser Flak Cannon Rocket Launcher Katana [Rating: 24] Favorites ----------- Power Ion Engine Engine Ion Engine Propulsion Compact Wheel Leg Aluminum Leg Wheel Compact Wheel Utility High-capacity Storage Unit Device Improved Heat Sink Storage High-capacity Storage Unit Processor Targeting Computer Protection Light Armor Plating Weapon Improved EM Shotgun Energy Gun Improved EM Shotgun Energy Cannon Particle Cannon Ballistic Gun Assault Rifle Launcher Rocket Launcher Impact Weapon Flail Slashing Weapon Katana Build | -11 -10 -10 -9 -9 ------- Run | Scr Mat Min Mat Min Slots Evolved 2 | . . . 2 . Power . | . . . . . Propulsion . | . . . . . Utility 2 | . . . 2 . Weapon . | . . . . . Parts Attached 60 | 7 22 . 24 7 Power 4 | 1 1 . 2 . Engine 4 | 1 1 . 2 . Core . | . . . . . Reactor . | . . . . . Propulsion 10 | 2 4 . 3 1 Treads . | . . . . . Leg 2 | 2 . . . . Wheel 8 | . 4 . 3 1 Hover . | . . . . . Flight . | . . . . . Utility 18 | 2 6 . 8 2 Device 3 | 1 1 . 1 . Storage 6 | 1 5 . . . Processor 2 | . . . 2 . Hackware . | . . . . . Protection 7 | . . . 5 2 Artifact . | . . . . . Weapon 28 | 2 11 . 11 4 Energy Gun 12 | 2 1 . 7 2 Energy Cannon 5 | . 3 . 2 . Ballistic Gun 2 | . 2 . . . Ballistic Cannon . | . . . . . Launcher 1 | . . . 1 . Special Weapon . | . . . . . Impact Weapon 5 | . 5 . . . Slashing Weapon 3 | . . . 1 2 Piercing Weapon . | . . . . . Special Melee Weapon . | . . . . . Unidentified Prototypes 2 | . . . 2 . Parts Lost 12 | . 2 . 3 7 Power 1 | . . . . 1 Propulsion 4 | . . . 1 3 Utility 3 | . . . . 3 Weapon 4 | . 2 . 2 . Highest Loss Streak 6 | . 1 . 2 6 To Critical Strikes . | . . . . . Average Slot Usage (%) 99 | . 99 100 99 98 Engine 12 | . 14 14 11 10 Leg 7 | . 19 . . . Wheel 17 | . 8 28 21 21 Device 12 | . 14 14 11 8 Storage 12 | . 14 14 11 11 Processor 5 | . . . 11 11 Protection 5 | . . . 11 12 Energy Gun 12 | . 9 . 20 17 Energy Cannon 6 | . 5 28 . . Impact Weapon 4 | . 10 . . . Naked Turns . | . . . . . Heaviest Build 59 | 15 54 54 59 58 Greatest Support 32 | 20 32 32 32 26 Greatest Overweight (x) 4 | 2 1 1 2 4 Average Overweight (x) 1 | . . 1 1 2 Largest Inventory Capacity 20 | 8 20 20 20 20 Average Capacity 17 | 7 14 20 20 20 Most Carried 20 | 8 19 20 20 20 Average Carried 16 | 6 12 19 19 19 Final Capacity 20 | 8 20 20 20 20 Final Carried 20 | 8 19 20 20 19 Class Distribution -------------------- 98% | Mutant Dominant Class ---------------- Mutant | -10/Materials Mutant | -10/Mines Mutant | -9/Materials Mutant | -9/Mines Resources | -11 -10 -10 -9 -9 ----------- Run | Scr Mat Min Mat Min Matter Collected 803 | 270 177 80 220 56 Remotely . | . . . . . Salvage Created 2324 | 176 389 147 1500 112 Parts 132 | 14 15 12 87 4 Haulers Intercepted 3 | . 1 . 2 . Recyclers Shooed 4 | . . 2 1 1 Parts Field Recycled . | . . . . . Retrieved Matter . | . . . . . Parts Self-Destructed . | . . . . . Prevented . | . . . . . Kills | -11 -10 -10 -9 -9 ------- Run | Scr Mat Min Mat Min Combat Hostiles Destroyed 41 | . 8 3 26 4 Melee 3 | . 2 . . 1 Guns 26 | . 4 . 19 3 Cannons 4 | . . 3 1 . AOE 4 | . . . 4 . Classes Destroyed 9 | 2 4 1 2 . Worker 1 | . . . 1 . Builder 1 | . . . 1 . Tunneler 4 | 4 . . . . Hauler 3 | . 1 . 2 . Recycler 2 | 1 . . 1 . Watcher 8 | . 3 . 5 . Swarmer 9 | . 3 . 3 3 Grunt 22 | . 5 1 16 . Sentry 9 | . . 2 7 . Best Kill Streak 8 | 5 2 2 8 3 Combat Bots Only 4 | . 2 2 4 3 Max Kills in Single Turn 3 | 1 1 1 3 1 Gunslinging . | . . . . . Exploded 2 | . . . 2 . Melee 1 | . 1 . . 1 Uniques/NPCs Destroyed 1 | . . . . 1 8R-AWN (-9/Mines) Combat | -11 -10 -10 -9 -9 -------- Run | Scr Mat Min Mat Min Damage Taken 2371 | . 381 117 734 1139 Core 489 | . 54 63 82 290 Absorbed by Shields . | . . . . . Regen/Repaired (Parts) 15 | . 15 . . . Core Remaining (%) 76 | 100 . 53 . . Volleys Fired 109 | 8 32 11 55 3 Largest 2 | 2 2 2 2 2 Hottest 136 | 80 80 136 136 112 Shots Fired 218 | 16 64 22 109 7 Gun 186 | 16 64 . 99 7 Cannon 32 | . . 22 10 . Launcher . | . . . . . Special . | . . . . . Kinetic 14 | . 14 . . . Thermal 39 | . . 22 10 7 Explosive . | . . . . . Electromagnetic 165 | 16 50 . 99 . Robot Hit Streak 18 | 6 6 4 14 18 Robot Miss Streak 5 | 1 5 4 4 . Penetration Max . | . . . . . Secondary Targets 2 | . . . 2 . Max Gunslinging Chain 1 | . . . 1 . Shots Hit Robots 192 | 11 43 13 93 32 Core Hits 96 | 6 13 5 63 9 Critical Kills . | . . . . . Critical Parts Destroyed 3 | . 3 . . . Critical Strikes 4 | . 3 . . 1 Destroy 1 | . 1 . . . Smash 2 | . 2 . . . Sever 1 | . . . . 1 Melee Attacks 52 | . 13 . 3 36 Impact 13 | . 13 . . . Slashing 39 | . . . 3 36 Piercing . | . . . . . Sneak Attacks 3 | . 2 . . 1 Combat Hostiles . | . . . . . Follow-up Attacks 6 | . 2 . . 4 Damage Inflicted 4688 | 190 934 316 2144 1104 Guns 2294 | 146 574 . 1500 74 Cannons 513 | . . 316 197 . Explosions 535 | 44 44 . 447 . Melee 1327 | . 316 . . 1011 Ramming 19 | . . . . 19 Kinetic 97 | . 97 . . . Thermal 1122 | 44 44 316 644 74 Explosive . | . . . . . Electromagnetic 2123 | 146 477 . 1500 . Impact 316 | . 316 . . . Slashing 1011 | . . . . 1011 Piercing . | . . . . . Highest Corruption 5 | . . . 5 5 Average Corruption 5 | . . . 5 5 Corruption Purged . | . . . . . Corruption Blocked . | . . . . . Effects 13 | . . . 4 9 Message Errors 8 | . . . 3 5 Matter Fused 3 | . . . 1 2 Heat Flow Errors 1 | . . . . 1 Misfires 1 | . . . . 1 Overload Shots . | . . . . . Overflow Damage 241 | . 224 . 15 2 Projectiles . | . . . . . Explosions 51 | . 36 . 15 . Melee 190 | . 188 . . 2 Knockbacks 3 | . 3 . . . Impact 3 | . 3 . . . Kinetic . | . . . . . Secondary . | . . . . . Self-Inflicted Damage 74 | . 13 . 52 9 Shots 3 | . 1 . 2 . Rammed 2 | . . . . 2 Targets Rammed 2 | . . . . 2 Kicked . | . . . . . Crushed . | . . . . . Highest Temperature 327 | 36 192 240 327 253 Average Temperature 56 | 16 64 93 37 67 Received Heat Transfer 519 | . 171 60 288 . Siege Activations . | . . . . . Robots Corrupted 4 | . 2 . 2 . Combat Hostiles 3 | . 1 . 2 . Parts Fried 13 | . 6 . 7 . Impact Corruptions 6 | . 6 . . . Robots Melted . | . . . . . Combat Hostiles . | . . . . . Parts Melted 2 | . . . 1 1 Heat Transferred 1686 | 50 50 555 883 148 Parts Sabotaged . | . . . . . Parts Stolen . | . . . . . Parts Stripped . | . . . . . Power Chain Reactions 9 | 1 1 . 7 . Missiles Intercepted . | . . . . . Alert | -11 -10 -10 -9 -9 ------- Run | Scr Mat Min Mat Min Peak Influence 495 | 25 165 142 495 146 Initial 47 | . 16 12 . 47 Average 124 | 10 65 47 240 90 Maximum Alert Level 2 | . . . 2 . Low Security (%) 82 | 100 100 100 48 100 Level 1 11 | . . . 32 . Level 2 6 | . . . 18 . Level 3 . | . . . . . Level 4 . | . . . . . Level 5 . | . . . . . High Security . | . . . . . Max Security . | . . . . . Squads Dispatched 5 | . 2 . 3 . Investigation 4 | . 2 . 2 . Extermination . | . . . . . Reinforcement 1 | . . . 1 . Assault . | . . . . . Garrison . | . . . . . Intercept . | . . . . . Searches Triggered . | . . . . . Construction Impeded . | . . . . . Haulers Reinforced . | . . . . . Active Scanning Responses . | . . . . . Cargo Convoy Interrupts . | . . . . . Stealth | -11 -10 -10 -9 -9 --------- Run | Scr Mat Min Mat Min Distress Signals 3 | . 1 . 2 . Communications Jammed . | . . . . . Distress Signals . | . . . . . Times Spotted 61 | . 16 5 34 6 Peak Tracking Total 5 | . 3 2 5 3 Tactical Retreats 5 | . 4 . 1 . Traps | -11 -10 -10 -9 -9 ------- Run | Scr Mat Min Mat Min Traps Triggered . | . . . . . Indirectly . | . . . . . Trap Hack Attempts . | . . . . . Triggered . | . . . . . Disarmed . | . . . . . Reprogrammed . | . . . . . Reused . | . . . . . Traps Extracted . | . . . . . Installed . | . . . . . Triggered . | . . . . . Machines | -11 -10 -10 -9 -9 ---------- Run | Scr Mat Min Mat Min Machines Disabled 3 | . . 2 . 1 Max in Single Turn 1 | . . 1 . 1 Machines Sabotaged . | . . . . . Garrisons Compromised . | . . . . . Overloaded Fab Kills . | . . . . . Hacking | -11 -10 -10 -9 -9 --------- Run | Scr Mat Min Mat Min Machines Accessed 22 | . 10 . 11 1 Terminals 18 | . 8 . 9 1 Fabricators . | . . . . . Repair Stations 1 | . 1 . . . Recycling Units 3 | . 1 . 2 . Scanalyzers . | . . . . . Garrison Access . | . . . . . Total Hacks 72 | . 33 . 37 2 Successful 40 | . 24 . 16 . Failed 31 | . 8 . 21 2 Catastrophic 3 | . 1 . 2 . Database Lockouts 1 | . 1 . . . Manual 37 | . 18 . 17 2 Terminals 53 | . 27 . 24 2 Fabricators . | . . . . . Repair Stations 2 | . 2 . . . Recycling Units 17 | . 4 . 13 . Scanalyzers . | . . . . . Garrison Access . | . . . . . Terminal Hacks 22 | . 12 . 10 . Robot Analysis 7 | . 3 . 4 . Prototype ID Bank 4 | . 3 . 1 . Terminal Index 1 | . 1 . . . Alert Level 2 | . . . 2 . Unreport Threat 2 | . . . 2 . Locate Traps 5 | . 5 . . . Hauler Manifests 1 | . . . 1 . Fabricator Hacks . | . . . . . Repair Station Hacks 2 | . 2 . . . Scan Component 1 | . 1 . . . Repair 1 | . 1 . . . Recycling Unit Hacks 1 | . 1 . . . Retrieve Components 1 | . 1 . . . Scanalyzer . | . . . . . Garrison Access Hacks . | . . . . . Unauthorized Hacks 15 | . 9 . 6 . Terminals 7 | . 7 . . . Track 3 | . 3 . . . Botnet 3 | . 3 . . . Operators 1 | . 1 . . . Fabricators . | . . . . . Repair Stations . | . . . . . Recycling Units 8 | . 2 . 6 . Reject 3 | . 1 . 2 . Mask 2 | . . . 2 . Tunnel 3 | . 1 . 2 . Scanalyzers . | . . . . . Garrison Access . | . . . . . Data Cores Recovered . | . . . . . Used . | . . . . . Hacking Detections 22 | . 10 . 11 1 Full Trace Events 1 | . . . 1 . Feedback Events . | . . . . . Feedback Blocked . | . . . . . Robot Schematics Acquired . | . . . . . Robots Built . | . . . . . Authchips . | . . . . . Time . | . . . . . Total Robot Build Rating . | . . . . . Part Schematics Acquired . | . . . . . Parts Built . | . . . . . Authchips . | . . . . . Time . | . . . . . Total Part Build Rating . | . . . . . Parts Repaired 1 | . 1 . . . Time 53 | . 53 . . . Parts Recycled . | . . . . . Recycled Matter . | . . . . . Retrieved Matter . | . . . . . Retrieved Components 9 | . 9 . . . Parts Scanalyzed . | . . . . . Part Schematics Acquired . | . . . . . Parts Damaged . | . . . . . Bothacking | -11 -10 -10 -9 -9 ------------ Run | Scr Mat Min Mat Min Used RIF Installer . | . . . . . Robots Hacked . | . . . . . Non-combat . | . . . . . Combat . | . . . . . Robot Hacks Applied . | . . . . . Relay Couplers Released . | . . . . . Fabnet Peak Effective % . | . . . . . Robots Rewired . | . . . . . Allies Hacked . | . . . . . Hacks Repelled . | . . . . . Allies | -11 -10 -10 -9 -9 -------- Run | Scr Mat Min Mat Min Total Allies 5 | . . 3 . 2 Largest Group 3 | . . 3 2 2 Highest-Rated Group 45 | . . 40 24 45 Highest-Rated Ally 31 | . . 16 16 31 Total Orders 2 | . . . 2 . STAY 1 | . . . 1 . FOLLOW 1 | . . . 1 . Ally Attacks 39 | . . 15 14 10 Total Damage 393 | . . 152 114 127 Kills 3 | . . 2 1 . Allies Corrupted . | . . . . . Allies Melted . | . . . . . Intel | -11 -10 -10 -9 -9 ------- Run | Scr Mat Min Mat Min Robot Analysis Total 7 | . 3 . 4 . Derelict Logs Recovered 2 | . . 1 . 1 Drone Launches . | . . . . . Drone Recoveries . | . . . . . Exploration | -11 -10 -10 -9 -9 ------------- Run | Scr Mat Min Mat Min Turns Passed 4640 | 138 1657 766 1615 464 Spaces Moved 2944 | 81 905 603 1094 261 Core 11 | 11 . . . . Treads . | . . . . . Legs 633 | 70 563 . . . Wheels 2300 | . 342 603 1094 261 Hover . | . . . . . Flight . | . . . . . Fastest Speed 50 | 50 100 115 115 110 Average Speed 125 | 112 141 115 119 119 Slowest Speed 190 | 190 190 115 120 140 Overloaded Moves . | . . . . . Propulsion Burnouts . | . . . . . Robots Hopped . | . . . . . Cave-ins Triggered . | . . . . . Exploration Rate (%) 66 | 4 97 98 81 53 Regions Visited 4 Branch Regions 2 Pre-discovered Areas 3 | . 1 . 2 . Known Exits Taken 1 | . . . 1 . Unknown Exits Taken 3 | 1 1 1 . . Scrap Searched 3 | . . 2 . 1 Spaces Dug 6 | . 1 . 3 2 Terrain Destroyed 40 | 3 3 . 32 2 Melee 6 | . 1 . 3 2 Projectile . | . . . . . AOE 34 | 3 2 . 29 . Terrain Rammed . | . . . . . Walls Destroyed . | . . . . . Machines Disabled . | . . . . . Actions | -11 -10 -10 -9 -9 --------- Run | Scr Mat Min Mat Min Total 3609 | 109 1197 654 1294 355 Wait 351 | . 192 38 74 47 Move 2940 | 80 904 602 1093 261 Hop . | . . . . . Pick Up 62 | 11 24 2 23 2 Fast Attach 7 | 7 . . . . Attach 19 | . 7 . 9 3 Detach 3 | . 2 . 1 . Swap 34 | . 15 . 15 4 Drop 38 | 3 12 1 21 1 Fire 109 | 8 32 11 55 3 Melee 44 | . 9 . 3 32 Ram 2 | . . . . 2 Kick . | . . . . . Crush . | . . . . . Escape Stasis . | . . . . . Rewire . | . . . . . Trap . | . . . . . Miscellaneous . | . . . . . Route ------- -11/Scrapyard -10/Materials (discovered 5 exits: *Mat x3 / [*Min x2]) -10/Mines (discovered 2 exits: *Mat x2) -9/Materials (discovered 3 exits: [*Mat x2] / *Min) -9/Mines History --------- Turn | Location | Event 6 | -11/Scrapyard | Discovered new exit (range 15) 139 | -11/Scrapyard | Entered Materials 271 | -10/Materials | Discovered new exit (range 7) 314 | -10/Materials | Build established: Mutant 433 | -10/Materials | Discovered new exit (range 8) 646 | -10/Materials | Central database locked down 659 | -10/Materials | Discovered new exit (range 9) 1039 | -10/Materials | Discovered new exit (range 8) 1202 | -10/Materials | Discovered new exit (range 7) 1600 | -10/Materials | Repaired Corrupted Imp. Heat Sink 1796 | -10/Materials | Entered Mines 1797 | -10/Mines | Met a Derelict bent on vengeance 1833 | -10/Mines | Assisted by bots powering up and referring to "LRC-V3" 1991 | -10/Mines | Discovered new exit (range 11) 2244 | -10/Mines | Found a hidden stash of uninstalled traps 2386 | -10/Mines | Discovered new exit (range 5) 2562 | -10/Mines | Entered Materials 2562 | -9/Materials | Accompanied by 2 allies 2562 | -9/Materials | Evolved 2 slots: Utility x2 2563 | -9/Materials | Identified exit to Mines 3124 | -9/Materials | Discovered new exit (range 16) 3755 | -9/Materials | Discovered new exit (range 16) 4177 | -9/Materials | Entered Mines 4510 | -9/Mines | Learned Materials emergency access door positions 4511 | -9/Mines | Assembled infested the area 4539 | -9/Mines | Met 8R-AWN 4561 | -9/Mines | Attacked by 8R-AWN 4634 | -9/Mines | Core integrity fell below 50% 4634 | -9/Mines | Found Prototype Ballistic Gun 4637 | -9/Mines | Destroyed 8R-AWN 4638 | -9/Mines | Core integrity fell below 20% 4641 | -9/Mines | Self-destructed Last Messages --------------- 04630_ U-05 Engineer lays Concrete. 04631_ U-05 Engineer destroyed. 04631_ Penetrated by HV Slug. 04631_ Imp. Light Armor Plating destroyed. 04631_ HV Slug penetrates Wall. 04633_ Slammed into 8R-AWN. 04633_ Destabilizing: Core damaged (-16). 04633_ as-26354 destroyed. 04634_ Acquired Prototype Ballistic Gun. 04635_ Penetrated by HV Slug. 04635_ HV Slug penetrates Earth. 04635_ Hvy. Ion Engine destroyed. 04636_ The unstable cave ceiling collapses. 04637_ Katana follow-up attack on 8R-AWN. 04637_ 8R-AWN destroyed. 04638_ The unstable cave ceiling collapses. 04639_ Wheel destroyed. 04639_ Imp. Light Armor Plating destroyed. 04641_ The unstable cave ceiling collapses. 04641_ Wheel destroyed. Map ----- +----------------------------------------------------+ | ?????????????????????####???????# ##??# ##? | | ????????????????????????????????## ##??# ## | | ?????????????????????????????????## #??## # | | ?????????????????????????#######??# #???## # | | ?????????????????????????# """ #??## ##????## ## | | ?????????????????????????# """ #???## #??????## #? | | ?????????????????????????# """ ###### #???????# #? | | ?????????????????????????# ##??????# #? | | ?????????????????????????# #######"######?# #? | | ?????????????????????????# #?????##"# ! ### ## | | ?????????????????????????#######?????### =%! ## ## | | ????????????????????????????????????## !| | | ?????????????????????????# ?????????# | | ?????????????????????????# ????????## ##### | | ?????????????????????????# ??????### # ##???#! | | ?????????????????????????# ?????## ## #????## | | ?????????????????????????# ###### ### #?????## | | ???????????????????????##### ## #?? #??????? | | ?????????????????????### #### %% % #?? #?????## | | ????????????????????## %d! ##?? #?????# | | ????????????????????# %%!= ##??? #?????# | | ????????????????????# %d #???? #?????# | | ????????????????????# #?????#?????# | | ????????????????????# ### ##?????????### | | ????????????????????## # ###??????????# | | ?????????????????????# @ ###????????????# "" | | ????????????????????# #??????????????# "" | | ????????????????????# #??????????????# "" | | ????????????????????## ##??????????????# | | ?????????????????????### ##???????????????# "" | | ???????????????????????### ###????????????????# "" | | ?????????????????????????###??????????????????# "" | | ??????????????????????????????????????????????# | | ??????????????????????????????????????????????#### | | ?????????????????????????????????????????????????? | | ?????????????????????????????????????????????????? | | ?????????????????????????????????????????????????? | | | | | | | | | | | | | | | | | | | | | | | | | | | +----------------------------------------------------+ Best States ------------- Heat Dissipation 42 Energy Generation 14 Energy Capacity 280 Matter Stores 300 Matter Capacity 300 Sight Range 16 Terrain Scan Range 16 Terrain Scan Density 10 Armor Coverage 300 Evasion (%) 55 Targeting Accuracy 6 Item Schematics ----------------- None Robot Schematics ------------------ None Fabricated ------------ Nothing Alien Tech Used ----------------- None Achievements -------------- None Challenges ------------ None Game ------ Seed LegSingularityWell Manual? 0 Play Time 00:37:39 Cumulative 406.6 hours Start 2023.02.05 @ 15:23:27 End 2023.02.05 @ 16:01:46 Sessions 1 Manual Loads 0 Difficulty Rogue Special Mode None Game No. 316 Rogue 316 Adventurer 0 Explorer 0 Win Type - Total 0 Types 0/0/0/0/0/0/0/0/0 Lore% 61 Gallery% 70 Achievement% 52 Wizard Run 0 Options --------- ASCII 0 Keyboard 0 Movement Mouse Keybinds 0 Fullscreen 1 Font 16/SmallcapsGlow Map View 75x55 Tactical HUD 1 Map Filters NONE Filters NONE Steam 1 RUN: 9d01b00b-43bc-4581-9ac2-2b85c565626c